bitfinex-derivatives/quotes_SOLF0:USTF0_20260114
["timestamp","ask_amount","ask_price","bid_price","bid_amount"]
[1768415638286,91.63555585,146.12,146.04,6.1619]
[1768415638689,10.85555585,146.12,146.04,6.1619]
[1768415639292,10.85555585,146.11,146.01,10.64546793]
[1768415639681,10.85555585,146.1,145.99,80.8]
[1768415639884,10.85555585,146.1,145.98,11.83704471]
[1768415639885,6.1611,146.07,145.98,10.64546793]
[1768415640081,10.85555585,146.08,145.98,10.64546793]
[1768415640693,106.69165585,146.07,145.98,10.64546793]
[1768415640893,10.85555585,146.06,145.95,10.64546793]
[1768415641198,10.85555585,146.09,145.96,10.64546793]
[1768415641491,10.85555585,146.07,145.96,10.64546793]
[1768415641691,10.85555585,146.07,145.97,10.64546793]
[1768415642393,6.1613,146.06,145.97,10.64546793]
[1768415642892,6.1618,146.05,145.97,10.64546793]
[1768415643296,91.67555585,146.07,145.97,10.64546793]
[1768415643297,10.85555585,146.06,145.97,16.81026793]
[1768415643996,10.85555585,146.06,145.98,16.80986793]
[1768415644196,80.82,146.07,145.98,16.80986793]
[1768415644494,6.1602,146.09,145.99,10.64546793]
[1768415644700,6.1602,146.09,145.96,95.9031]
[1768415644701,91.69555585,146.09,146.0,10.64546793]
[1768415645188,10.85555585,146.09,146.01,6.163]
[1768415645396,6.1597,146.1,146.02,10.64546793]
[1768415646489,17.01435585,146.12,146.02,16.80806793]
[1768415646691,97.85435585,146.12,146.02,16.80806793]
[1768415646890,6.1583,146.13,146.05,10.64546793]
[1768415647188,6.1583,146.13,146.02,10.64546793]
[1768415647189,10.85555585,146.13,146.02,10.64546793]
[1768415647390,10.85555585,146.11,146.02,10.64546793]
[1768415647590,17.01575585,146.09,146.0,80.84]
[1768415647797,17.01575585,146.09,146.0,91.48546793]
[1768415648190,17.01575585,146.09,146.0,97.64896793]
[1768415648492,10.85555585,146.09,146.0,97.64896793]
[1768415648694,10.85555585,146.12,146.01,10.64546793]
[1768415649003,10.85555585,146.12,146.03,10.64546793]
[1768415649200,17.01315585,146.15,146.03,10.64546793]
[1768415649503,10.85555585,146.14,146.03,10.64546793]
[1768415649703,10.85555585,146.14,146.05,16.80676793]
[1768415650201,10.85555585,146.14,146.0,176.7171]
[1768415650202,10.85555585,146.13,146.01,10.64546793]
[1768415650595,6.1589,146.12,146.03,6.1623]
[1768415650795,10.85555585,146.11,146.01,10.64546793]
[1768415651303,10.85555585,146.11,146.02,10.64546793]
[1768415651901,17.01355585,146.14,146.04,16.80726793]
[1768415652098,17.01355585,146.14,146.05,10.64546793]
[1768415652301,6.1572,146.16,146.06,6.1611]
[1768415652495,10.85555585,146.17,146.08,10.64546793]
[1768415652696,10.85555585,146.2,146.08,10.64546793]
[1768415653400,6.1551,146.21,146.1,10.64546793]
[1768415654197,10.85555585,146.23,146.13,6.158]
[1768415654198,17.00975585,146.23,146.13,6.158]
[1768415654401,17.00975585,146.23,146.13,16.80346793]
[1768415654800,6.1546,146.22,146.13,16.80346793]
[1768415654996,6.1546,146.22,146.14,6.1577]
[1768415655394,6.1537,146.24,146.16,6.1568]
[1768415655609,10.85555585,146.26,146.14,10.64546793]
[1768415655610,10.85555585,146.26,146.15,10.64546793]
[1768415656310,17.00835585,146.26,146.17,6.1564]
[1768415656505,10.85555585,146.25,146.15,10.64546793]
[1768415656700,10.85555585,146.24,146.13,80.84]
[1768415657001,10.85555585,146.24,146.13,91.48546793]
[1768415657206,10.85555585,146.24,146.14,10.64546793]
[1768415657804,95.6979,146.28,146.14,10.64546793]
[1768415657805,10.85555585,146.28,146.17,10.64546793]
[1768415658194,10.85555585,146.27,146.17,10.64546793]
[1768415658897,10.85555585,146.24,146.14,91.48546793]
[1768415660212,10.85555585,146.28,146.16,10.64546793]
[1768415660410,91.69555585,146.28,146.16,10.64546793]
[1768415660597,95.6969,146.29,146.16,10.64546793]
[1768415660598,10.84579966,146.27,146.16,10.64546793]
[1768415660997,10.84579966,146.27,146.18,6.1559]
[1768415661198,10.84579966,146.27,146.18,10.61324538]
[1768415661401,176.502,146.31,146.18,10.61324538]
[1768415661602,10.49075756,146.3,146.21,16.76804538]
[1768415662003,10.49075756,146.3,146.21,10.61324538]
[1768415663004,10.49075756,146.3,146.2,80.82]
[1768415663211,10.49075756,146.28,146.2,80.82]
[1768415663407,10.49075756,146.28,146.18,10.61324538]
[1768415663408,6.1534,146.25,146.18,10.61324538]
[1768415663608,106.19735756,146.27,146.18,10.61324538]
[1768415663813,10.49075756,146.26,146.16,86.9767]
[1768415664014,10.49075756,146.26,146.16,97.58994538]
[1768415664814,106.20965756,146.25,146.16,10.61324538]
[1768415665016,106.20965756,146.25,146.13,6.1579]
[1768415665017,10.49075756,146.24,146.13,97.59114538]
[1768415665207,10.49075756,146.24,146.14,10.61324538]
[1768415666313,6.155,146.21,146.14,10.61324538]
[1768415666614,10.49075756,146.22,146.14,10.61324538]
[1768415667921,6.155,146.21,146.14,10.61324538]
[1768415668913,10.49075756,146.22,146.14,10.61324538]
[1768415669216,91.29075756,146.25,146.14,10.61324538]
[1768415669813,10.49075756,146.25,146.14,10.61324538]
[1768415670217,6.1545,146.22,146.14,16.77094538]
[1768415670925,6.155,146.21,146.14,10.61324538]
[1768415671110,10.49075756,146.21,146.11,10.61324538]
[1768415671312,10.49075756,146.2,146.11,10.61324538]
[1768415672019,91.29075756,146.23,146.11,10.61324538]
[1768415672820,91.29075756,146.23,146.13,10.61324538]
[1768415673920,10.49075756,146.23,146.13,10.61324538]
[1768415675818,6.155,146.21,146.13,16.77124538]
[1768415677020,16.64575756,146.21,146.13,16.77124538]
[1768415678517,10.49075756,146.21,146.14,6.1574]
[1768415681624,16.64565756,146.21,146.14,6.1574]
[1768415682424,16.64565756,146.21,146.13,16.77134538]
[1768415683126,6.1553,146.2,146.13,16.77134538]
[1768415683325,10.49075756,146.19,146.11,6.1588]
[1768415683921,10.49075756,146.19,146.11,16.77204538]
[1768415684121,10.49075756,146.19,146.11,10.61324538]
[1768415684528,10.49075756,146.15,146.08,10.61324538]
[1768415684725,6.1579,146.14,146.05,10.61324538]
[1768415684935,10.49075756,146.15,146.05,10.61324538]
[1768415685630,6.1579,146.14,146.06,6.161]
[1768415686024,6.1579,146.14,146.06,10.61324538]
[1768415686426,10.49075756,146.15,146.06,10.61324538]
[1768415686631,10.49075756,146.13,146.04,80.8]
[1768415686928,10.49075756,146.13,146.05,6.1613]
[1768415687324,6.1587,146.12,146.04,91.41324538]
[1768415687931,16.64905756,146.13,146.05,10.61324538]
[1768415688132,10.49075756,146.13,146.05,10.61324538]
[1768415688523,13.76692285,146.13,146.05,10.61324538]
[1768415688724,6.1593,146.11,146.05,10.61324538]
[1768415689124,6.1593,146.11,146.04,80.8]
[1768415690022,6.1596,146.1,146.02,10.61324538]
[1768415690225,6.1596,146.1,146.0,10.63979523]
[1768415690226,10.49075756,146.09,146.0,10.63979523]
[1768415690824,6.1593,146.11,146.01,10.63979523]
[1768415691235,16.66838246,146.11,146.01,10.63979523]
[1768415691827,9.43466529,146.13,146.03,10.63979523]
[1768415692026,10.50908246,146.14,146.03,10.63979523]
[1768415692229,3.27616529,146.17,146.06,10.63979523]
[1768415692427,13.78524775,146.17,146.08,6.1602]
[1768415692938,10.50908246,146.16,146.06,10.63979523]
[1768415693235,6.1575,146.15,146.07,6.1607]
[1768415693436,10.50908246,146.14,146.04,91.45979523]
[1768415694430,10.50908246,146.14,146.05,16.80129523]
[1768415694637,10.50908246,146.14,146.05,10.63979523]
[1768415694838,13.78524775,146.17,146.07,10.63979523]
[1768415696933,10.50908246,146.17,146.07,10.63979523]
[1768415698537,10.50908246,146.2,146.1,10.63979523]
[1768415699743,16.66468246,146.2,146.1,10.63979523]
[1768415699946,10.50908246,146.2,146.12,6.1584]
[1768415700150,10.50908246,146.2,146.1,10.63979523]
[1768415700343,6.1567,146.17,146.1,10.63979523]
[1768415700646,10.50908246,146.18,146.1,10.63979523]
[1768415701051,13.78524775,146.21,146.11,10.63979523]
[1768415701234,10.50908246,146.2,146.11,10.63979523]
[1768415701438,2.09742069,146.21,146.11,12.73721592]
[1768415701741,95.7203,146.25,146.15,10.63979523]
[1768415701742,2.09742069,146.25,146.15,10.63979523]
[1768415702143,80.84,146.28,146.15,10.63979523]
[1768415702144,10.50908246,146.28,146.16,10.63979523]
[1768415702353,2.09742069,146.27,146.16,10.63979523]
[1768415702664,2.09742069,146.23,146.16,10.63979523]
[1768415702960,6.1547,146.22,146.15,80.84]
[1768415703345,18.75990315,146.25,146.17,6.1564]
[1768415703648,12.60650315,146.25,146.17,16.79619523]
[1768415704042,2.09742069,146.26,146.18,10.63979523]
[1768415704552,2.09742069,146.26,146.19,6.1556]
[1768415704850,10.50908246,146.28,146.15,91.45979523]
[1768415704851,2.09742069,146.24,146.15,91.45979523]
[1768415705455,10.50908246,146.25,146.15,91.45979523]
[1768415705750,10.50908246,146.28,146.17,10.63979523]
[1768415706143,6.153,146.26,146.17,16.79609523]
[1768415707047,16.66208246,146.26,146.17,16.79609523]
[1768415707256,6.1533,146.25,146.17,16.79609523]
[1768415707647,6.1533,146.25,146.15,6.1572]
[1768415707648,10.50908246,146.25,146.15,6.1572]
[1768415708757,6.1542,146.23,146.15,6.1572]
[1768415709055,10.50908246,146.25,146.16,6.1568]
[1768415709243,10.50908246,146.25,146.16,10.63979523]
[1768415711357,16.66248246,146.25,146.16,10.63979523]
[1768415711554,10.50908246,146.28,146.16,10.63979523]
[1768415712860,6.1524,146.27,146.18,16.79579523]
[1768415713049,10.50908246,146.27,146.18,16.79579523]
[1768415714745,6.1528,146.26,146.18,16.79579523]
[1768415715359,6.1533,146.25,146.18,10.63979523]
[1768415715561,10.50908246,146.25,146.16,6.1566]
[1768415715760,10.50908246,146.25,146.16,16.79639523]
[1768415716052,6.1537,146.24,146.16,10.63979523]
[1768415716259,6.1537,146.24,146.17,6.1565]
[1768415716660,6.1537,146.24,146.13,95.79]
[1768415716661,16.66398246,146.21,146.13,16.79769523]
[1768415716958,10.50908246,146.21,146.1,10.63979523]
[1768415717356,10.50908246,146.21,146.1,16.79909523]
[1768415717952,6.1555,146.2,146.12,6.1584]
[1768415719456,10.50908246,146.19,146.1,16.79909523]
[1768415719754,10.50908246,146.17,146.07,10.63979523]
[1768415720161,6.1575,146.15,146.07,10.63979523]
[1768415720364,10.50908246,146.17,146.07,10.63979523]
[1768415720553,10.93911418,146.15,146.04,91.76051217]
[1768415720857,10.95712307,146.14,146.04,97.92251217]
[1768415721559,17.11512307,146.14,146.04,97.92251217]
[1768415721759,10.95712307,146.14,146.04,97.92251217]
[1768415722151,10.95712307,146.12,146.02,6.1628]
[1768415722953,6.1596,146.1,146.01,10.92268818]
[1768415723861,6.1596,146.1,146.01,17.08578818]
[1768415724361,6.1596,146.1,146.0,80.8]
[1768415724362,17.11592307,146.12,146.02,17.08528818]
[1768415724658,10.95712307,146.11,146.02,17.08528818]
[1768415725163,10.95712307,146.11,146.02,10.92268818]
[1768415726050,10.95712307,146.15,146.02,10.92268818]
[1768415726865,10.95712307,146.15,146.05,10.92268818]
[1768415727263,17.11472307,146.15,146.06,6.1609]
[1768415727458,10.95712307,146.15,146.06,17.08358818]
[1768415728475,10.95712307,146.15,146.06,10.92268818]
[1768415729862,6.158,146.14,146.06,10.92268818]
[1768415730061,17.11512307,146.14,146.06,10.92268818]
[1768415731069,17.11552307,146.13,146.05,6.1614]
[1768415733169,10.95712307,146.11,146.03,97.92508818]
[1768415733367,10.95712307,146.11,146.03,91.76268818]
[1768415734364,17.11632307,146.11,146.03,91.76268818]
[1768415735160,5.34706332,146.13,146.03,91.76268818]
[1768415735161,17.11682307,146.1,146.03,80.84]
[1768415735467,10.95712307,146.09,146.0,17.08608818]
[1768415736656,17.11712307,146.09,146.0,10.92268818]
[1768415737264,10.95712307,146.09,146.02,6.1628]
[1768415737469,13.05745929,146.09,146.02,6.1628]
[1768415738367,13.05745929,146.09,146.03,6.1623]
[1768415738567,2.10033622,146.1,146.03,6.1623]
[1768415739066,6.1603,146.09,146.01,6.163]
[1768415739370,2.10033622,146.08,146.01,17.08568818]
[1768415739566,8.26083622,146.08,146.01,10.92268818]
[1768415739764,2.10033622,146.08,146.0,80.86]
[1768415739964,2.10033622,146.06,145.95,13.0230244]
[1768415740173,6.1617,146.05,145.97,6.1647]
[1768415740867,6.1617,146.05,145.87,116.5]
[1768415740868,1.36,146.05,145.87,116.5]
[1768415741162,1.36,146.05,145.84,10.92268818]
[1768415741163,2.10033622,145.94,145.84,10.92268818]
[1768415741370,2.75529325,145.96,145.84,10.92268818]
[1768415741759,98.66239325,145.96,145.84,10.92268818]
[1768415741963,2.80450647,145.95,145.84,10.92268818]
[1768415742371,4.90484269,145.95,145.84,10.92268818]
[1768415742572,2.80450647,145.95,145.84,10.92268818]
[1768415742962,2.80450647,145.95,145.86,10.92268818]
[1768415743662,2.85300488,145.94,145.82,10.92268818]
[1768415745368,2.94846184,145.97,145.85,10.92268818]
[1768415745571,2.94846184,146.01,145.87,10.92268818]
[1768415745773,2.94846184,146.01,145.86,95.9692]
[1768415745774,98.80776184,146.04,145.91,10.92268818]
[1768415745960,104.97216184,146.03,145.91,10.92268818]
[1768415746160,2.99528251,146.01,145.91,10.92268818]
[1768415746376,8.36530447,146.01,145.91,10.92268818]
[1768415746673,2.99528251,146.01,145.91,10.92268818]
[1768415747167,8.41158685,146.04,145.91,10.92268818]
[1768415747372,8.41158685,146.04,145.91,106.85728818]
[1768415747575,8.41158685,146.04,145.92,10.92268818]
[1768415747772,14.57368685,146.04,145.93,10.92268818]
[1768415747972,3.04156489,146.03,145.93,10.92268818]
[1768415748570,3.04156489,146.03,145.94,106.84168818]
[1768415748768,3.08744397,146.04,145.92,10.92268818]
[1768415751173,3.25544137,146.03,145.92,10.92268818]
[1768415751874,3.29866671,146.02,145.92,17.08968818]
[1768415754079,3.29866671,146.02,145.93,11.23998708]
[1768415754281,9.54547254,146.05,145.94,17.40598708]
[1768415754581,3.38367254,146.05,145.95,11.23998708]
[1768415755578,9.54547254,146.05,145.96,6.1652]
[1768415755876,9.54547254,146.05,145.95,11.23998708]
[1768415758976,3.38367254,146.05,145.95,11.23998708]
[1768415759373,3.38367254,146.05,145.95,17.40568708]
[1768415760179,3.62744399,146.04,145.95,11.23998708]
[1768415760675,6.1634,146.01,145.95,11.23998708]
[1768415760880,3.62744399,146.04,145.95,6.1658]
[1768415761079,3.62744399,146.04,145.93,92.15998708]
[1768415761277,3.62744399,146.04,145.94,11.23998708]
[1768415761579,3.66639868,146.07,145.96,11.23998708]
[1768415761983,9.82729868,146.07,145.99,6.164]
[1768415762176,3.7048994,146.1,145.99,11.23998708]
[1768415762583,6.1601,146.09,146.0,11.23998708]
[1768415762783,3.7048994,146.1,146.0,11.23998708]
[1768415763880,99.60947262,146.08,145.97,11.23998708]
[1768415764077,3.78057262,146.07,145.97,92.15998708]
[1768415764382,3.78057262,146.07,145.98,11.23998708]
[1768415765184,3.78057262,146.07,145.97,80.92]
[1768415765487,3.81770989,146.04,145.95,11.23998708]
[1768415765777,3.81770989,146.04,145.92,80.9]
[1768415765778,6.1634,146.01,145.92,92.13998708]
[1768415765979,3.81770989,146.02,145.93,11.23998708]
[1768415766179,95.8478,146.06,145.93,11.23998708]
[1768415766180,99.70228308,146.06,145.93,11.23998708]
[1768415767587,99.73961748,146.05,145.94,11.23998708]
[1768415768484,6.163,146.02,145.94,11.23998708]
[1768415768888,6.163,146.02,145.94,17.40598708]
[1768415769581,3.96242666,146.0,145.9,11.23998708]
[1768415770187,6.1644,145.99,145.9,11.23998708]
[1768415771289,6.1647,145.98,145.9,11.23998708]
[1768415771988,6.1651,145.97,145.9,11.23998708]
[1768415772186,99.95586235,145.99,145.9,11.23998708]
[1768415772385,4.06676235,145.96,145.87,11.23998708]
[1768415773796,4.10070743,145.99,145.89,11.23998708]
[1768415774688,85.05423889,146.01,145.89,11.23998708]
[1768415775483,4.13423889,146.01,145.92,11.23998708]
[1768415776391,6.1639,146.0,145.92,11.23998708]
[1768415777496,4.13423889,146.01,145.92,17.40688708]
[1768415777688,4.13423889,146.01,145.92,11.23998708]
[1768415778592,4.13423889,146.01,145.89,11.23998708]
[1768415778992,6.1648,145.98,145.9,17.40778708]
[1768415779888,6.1639,146.0,145.92,11.23998708]
[1768415780386,6.1642,145.99,145.92,11.23998708]
[1768415780891,4.13423889,146.01,145.92,11.23998708]
[1768415781496,4.43233307,146.04,145.92,11.23998708]
[1768415781795,8.71393909,146.07,145.94,11.33818649]
[1768415781796,100.26923307,146.07,145.94,11.33818649]
[1768415782194,6.1621,146.04,145.96,6.1653]
[1768415782390,100.30585342,146.06,145.96,11.33818649]
[1768415782587,4.46205342,146.05,145.93,11.33818649]
[1768415782897,6.1625,146.03,145.95,17.50388649]
[1768415783096,6.1625,146.03,145.96,11.33818649]
[1768415784299,6.1629,146.02,145.96,11.33818649]
[1768415784986,6.1634,146.01,145.93,11.33818649]
[1768415786997,6.1634,146.01,145.93,17.50478649]
[1768415788103,4.54912593,146.04,145.95,11.33818649]
[1768415788498,6.1628,146.03,145.95,11.33818649]
[1768415789001,6.163,146.02,145.95,11.33818649]
[1768415789206,4.54912593,146.04,145.95,11.33818649]
[1768415789703,4.54912593,146.04,145.92,87.0867]
[1768415789704,6.1638,146.0,145.92,98.42488649]
[1768415789896,6.1638,146.0,145.92,87.0867]
[1768415790101,6.1638,146.0,145.93,11.33818649]
[1768415790398,4.68788557,146.06,145.94,11.33818649]
[1768415791507,6.1627,146.03,145.95,11.33818649]
[1768415791697,4.71472173,146.04,145.95,11.33818649]
[1768415792098,6.1634,146.01,145.92,92.25818649]
[1768415792298,6.1634,146.01,145.93,11.33818649]
[1768415792500,4.74123022,146.02,145.93,11.33818649]
[1768415792704,6.164,146.0,145.93,11.33818649]
[1768415793806,6.1642,145.99,145.93,11.33818649]
[1768415794009,4.79355689,146.01,145.9,17.50578649]
[1768415794907,6.1646,145.98,145.9,17.50578649]
[1768415795203,6.1646,145.98,145.91,11.33818649]
[1768415795409,4.79355689,146.01,145.91,17.50568649]
[1768415795807,6.1633,146.01,145.94,11.33818649]
[1768415796015,4.81919951,146.04,145.94,11.33818649]
[1768415797006,10.98139951,146.04,145.96,6.1653]
[1768415797508,10.98139951,146.04,145.96,17.50348649]
[1768415797708,10.98139951,146.04,145.96,11.33818649]
[1768415798106,6.1614,146.06,145.96,11.33818649]
[1768415798312,6.1614,146.06,145.98,11.33818649]
[1768415798609,4.89449137,146.07,145.98,11.33818649]
[1768415799307,4.91888263,146.06,145.95,11.33818649]
[1768415800012,6.1622,146.04,145.96,11.33818649]
[1768415801210,6.1626,146.03,145.96,11.33818649]
[1768415805920,5.03139686,146.09,145.96,11.33818649]
[1768415806118,5.03139686,146.09,145.97,11.33818649]
[1768415806315,5.03139686,146.12,146.0,11.33818649]
[1768415806514,5.03139686,146.12,146.02,11.33818649]
[1768415807321,6.1593,146.11,146.02,17.50088649]
[1768415808325,6.1596,146.1,146.02,17.50088649]
[1768415808709,5.02611152,146.11,146.02,11.33818649]
[1768415809117,6.1609,146.07,146.0,80.92]
[1768415809416,6.1609,146.07,146.0,92.25818649]
[1768415810617,6.1613,146.06,146.0,11.33818649]
[1768415815034,5.02346366,146.09,146.0,11.33818649]
[1768415815738,6.1601,146.11,146.0,11.33818649]
[1768415815923,5.00288282,146.12,146.0,11.33818649]
[1768415816323,6.16,146.09,146.02,18.22440755]
[1768415816630,5.00057967,146.1,146.02,12.06150755]
[1768415817923,6.1611,146.07,146.02,12.06150755]
[1768415818828,5.00057967,146.1,146.02,12.06150755]
[1768415820632,6.1609,146.07,146.02,12.06150755]
[1768415820928,6.1604,146.09,146.02,12.06150755]
[1768415821229,5.00057967,146.1,146.02,12.06150755]
[1768415821624,10.34809833,146.08,145.99,12.06150755]
[1768415822127,6.1614,146.06,145.99,12.06150755]
[1768415823027,16.50899833,146.08,145.99,18.22590755]
[1768415823329,4.98451867,146.07,145.99,12.06150755]
[1768415824033,6.1619,146.06,145.99,12.06150755]
[1768415825135,4.98014193,146.06,145.96,18.22730755]
[1768415825330,4.98014193,146.06,145.96,12.06150755]
[1768415825530,6.1636,146.02,145.96,12.06150755]
[1768415827034,11.14304193,146.04,145.96,12.06150755]
[1768415827232,4.98014193,146.04,145.96,12.06150755]
[1768415827433,4.97607967,146.03,145.93,12.06150755]
[1768415828234,10.3333859,146.01,145.93,12.06150755]
[1768415828931,6.1646,146.0,145.93,12.06150755]
[1768415829930,6.1638,146.02,145.93,12.06150755]
[1768415830336,4.97039921,146.0,145.93,12.06150755]
[1768415830534,6.1649,145.99,145.93,12.06150755]
[1768415831438,2.10419377,145.96,145.9,12.06150755]
[1768415832937,2.10419377,145.97,145.9,12.06150755]
[1768415833343,4.96847791,145.99,145.9,12.06150755]
[1768415834343,6.1657,145.97,145.9,12.06150755]
[1768415834543,4.96847791,145.99,145.9,12.06150755]
[1768415835444,4.96073789,145.97,145.87,12.06150755]
[1768415835643,4.96073789,145.96,145.87,12.06150755]
[1768415836141,6.1674,145.93,145.87,12.06150755]
[1768415836631,6.1674,145.93,145.84,12.06150755]
[1768415836835,6.1668,145.95,145.84,12.06150755]
[1768415837035,85.87888782,145.97,145.88,12.06150755]
[1768415837837,4.95702812,145.96,145.88,12.06150755]
[1768415838440,6.167,145.94,145.85,18.23180755]
[1768415838946,6.167,145.94,145.86,12.06150755]
[1768415839449,6.1674,145.93,145.86,12.06150755]
[1768415839838,4.95338223,145.94,145.83,12.06150755]
[1768415840035,4.95178082,145.92,145.83,12.06150755]
[1768415840241,85.89178082,145.95,145.83,12.06150755]
[1768415840741,87.1063,145.96,145.88,11.88566776]
[1768415841049,80.94,145.96,145.88,11.88566776]
[1768415841348,85.88061624,145.96,145.88,11.88566776]
[1768415841744,4.94061624,145.95,145.88,11.88566776]
[1768415842046,4.94061624,145.95,145.85,18.05616776]
[1768415842246,4.94061624,145.95,145.86,11.88566776]
[1768415842748,6.1674,145.93,145.86,11.88566776]
[1768415843045,4.93740539,145.94,145.83,11.88566776]
[1768415843748,6.1679,145.92,145.84,6.1709]
[1768415843943,6.1679,145.92,145.85,11.88566776]
[1768415844341,4.93581972,146.0,145.89,11.88566776]
[1768415844840,80.94,146.01,145.93,11.88566776]
[1768415845335,87.104,146.01,145.93,11.88566776]
[1768415845541,4.93439824,146.06,145.94,11.88566776]
[1768415846137,4.93439824,146.06,145.98,6.165]
[1768415846342,4.93439824,146.06,145.95,95.9214]
[1768415846343,100.74752794,146.12,145.99,11.88566776]
[1768415846742,4.93282794,146.12,145.99,11.88566776]
[1768415846947,6.1599,146.11,146.02,11.88566776]
[1768415847145,4.93137426,146.15,146.04,11.88566776]
[1768415847648,6.1593,146.12,146.04,11.88566776]
[1768415847853,4.93137426,146.13,146.04,11.88566776]
[1768415848449,85.86979693,146.16,146.04,11.88566776]
[1768415849252,4.92979693,146.16,146.04,11.88566776]
[1768415849743,6.1583,146.15,146.04,11.88566776]
[1768415850737,6.1583,146.15,146.05,11.88566776]
[1768415850938,6.159,146.13,146.05,11.88566776]
[1768415851142,11.08426394,146.13,146.03,11.88566776]
[1768415852643,4.92387885,146.09,146.0,18.04996776]
[1768415852948,4.92238816,146.08,145.97,11.88566776]
[1768415853349,4.92238816,146.06,145.97,11.88566776]
[1768415853542,100.77738816,146.06,145.97,11.88566776]
[1768415853743,6.1633,146.03,145.93,11.88566776]
[1768415854149,4.92238816,146.05,145.93,11.88566776]
[1768415855852,11.08478816,146.05,145.94,11.88566776]
[1768415856048,5.36693779,146.07,145.95,11.88566776]
[1768415856356,86.26693779,146.07,145.95,11.88566776]
[1768415856756,92.42853779,146.07,145.97,11.88566776]
[1768415857354,6.162,146.06,145.97,11.88566776]
[1768415858758,86.26693779,146.07,145.97,18.05106776]
[1768415858960,80.9,146.07,145.97,18.05106776]
[1768415859161,85.8141133,146.07,145.97,18.05106776]
[1768415859658,4.9141133,146.07,145.97,18.05106776]
[1768415860851,11.0757133,146.07,145.97,18.05106776]
[1768415861556,11.0757133,146.07,145.98,11.88566776]
[1768415862161,6.162,146.06,145.98,11.88566776]
[1768415865859,6.1612,146.08,145.98,11.88566776]
[1768415866061,106.04940046,146.13,145.98,11.88566776]
[1768415866252,106.04940046,146.13,146.02,11.88566776]
[1768415866562,6.1604,146.1,146.02,11.88566776]
[1768415866760,4.87706267,146.12,146.02,11.88566776]
[1768415867759,6.1606,146.09,146.02,11.88566776]
[1768415868357,4.87706267,146.12,146.02,11.88566776]
[1768415868551,10.24400046,146.12,146.02,11.88566776]
[1768415868967,10.24400046,146.12,146.03,11.88566776]
[1768415870764,6.1601,146.11,146.03,11.88566776]
[1768415872261,4.87706267,146.12,146.03,11.88566776]
[1768415872467,4.76424604,146.1,146.0,17.5738711]
[1768415872761,5.36693779,146.08,145.98,80.9]
[1768415872960,4.76424604,146.07,145.97,11.4096711]
[1768415873363,6.1619,146.06,145.98,17.5746711]
[1768415873567,6.1619,146.06,145.98,11.4096711]
[1768415873863,4.76424604,146.07,145.93,11.4096711]
[1768415874067,4.73684479,146.04,145.93,11.4096711]
[1768415874570,5.36693779,146.02,145.93,11.4096711]
[1768415874870,4.73684479,146.01,145.93,11.4096711]
[1768415875266,4.73684479,146.01,145.9,11.4096711]
[1768415875467,5.36693779,145.99,145.9,11.4096711]
[1768415876767,6.1654,145.98,145.9,11.4096711]
[1768415877370,10.86229358,145.98,145.9,11.4096711]
[1768415878064,5.36693779,145.99,145.9,11.4096711]
[1768415878265,4.68389805,145.98,145.87,11.4096711]
[1768415878658,4.68389805,145.95,145.85,11.4096711]
[1768415879859,6.167,145.94,145.85,11.4096711]
[1768415880764,6.1663,145.96,145.86,11.4096711]
[1768415881171,5.36693779,145.99,145.88,11.4096711]
[1768415881468,100.5143165,146.04,145.91,11.4096711]
[1768415881664,4.6458165,146.04,145.91,11.4096711]
[1768415882168,5.36693779,146.06,145.94,11.4096711]
[1768415882366,105.85589613,146.06,145.94,11.4096711]
[1768415882567,4.63355834,146.05,145.94,11.4096711]
[1768415882871,10.79585834,146.05,145.95,11.4096711]
[1768415885875,10.79585834,146.05,145.96,11.4096711]
[1768415886672,6.1623,146.05,145.96,11.4096711]
[1768415887073,91.65536503,146.07,145.97,11.4096711]
[1768415887475,85.49376503,146.07,145.97,11.4096711]
[1768415888368,6.162,146.06,145.97,11.4096711]
[1768415888575,4.5623663,146.06,145.97,11.4096711]
[1768415888769,100.4135663,146.06,145.97,11.4096711]
[1768415888974,4.5623663,146.04,145.94,11.4096711]
[1768415889875,6.1637,146.02,145.94,11.4096711]
[1768415894076,6.164,146.01,145.94,11.4096711]
[1768415894275,6.164,146.01,145.92,87.0876]
[1768415894276,4.49603639,146.01,145.91,11.4096711]
[1768415894775,6.1653,145.98,145.91,11.4096711]
[1768415895367,4.48536294,145.98,145.88,11.4096711]
[1768415895583,100.39286294,145.98,145.88,11.4096711]
[1768415896081,100.39706294,145.97,145.88,11.4096711]
[1768415896285,6.1667,145.95,145.88,11.4096711]
[1768415896789,4.47483392,145.96,145.88,11.4096711]
[1768415898777,10.64093392,145.96,145.88,11.4096711]
[1768415899571,4.47483392,145.96,145.88,11.4096711]
[1768415900176,6.1679,145.92,145.83,6.1713]
[1768415900380,4.43129446,145.92,145.82,11.4096711]